[Event "POR-chT 1st League 2017"]
[Site "Leiria"]
[Date "2017.07.21"]
[Round "7"]
[White "Santos, Antonio P"]
[Black "Reis, Luis Sousa"]
[Result "1-0"]
[ECO "E10"]
[WhiteElo "2237"]
[BlackElo "2182"]
[Annotator "NA"]
[PlyCount "119"]
[EventDate "2017.??.??"]
[EventType "team-tourn"]
[EventCountry "POR"]
[SourceTitle "playchess.com"]
[Source "ChessBase"]
[SourceQuality "1"]
[TimeControl "5400+30"]

1. d4 {[%emt 0:19:01]} Nf6 {[%emt 0:01:26]} 2. c4 {[%emt 0:00:12]} e6 {[%emt 0:01:02]} 3. Nf3 {[%emt 0:00:54]} c5 {[%emt 0:01:30]} 4. d5 {[%emt 0:00:09]} b5 {[%emt 0:01:31]} 5. Bg5 {[%emt 0:00:09]} exd5 {[%emt 0:04:00]} 6. cxd5 {[%emt 0:00:11]} h6 {[%emt 0:00:32]} 7. Bxf6 {[%emt 0:08:52]} Qxf6 {[%emt 0:01:01]} 8. Qc2 {[%emt 0:00:09]} d6 {[%emt 0:05:16]} 9. e4 {[%emt 0:00:14]} a6 {[%emt 0:02:18]} 10. a4 {[%emt 0:00:14]} b4 {[%emt 0:08:23]} 11. Nbd2 {[%emt 0:00:12]} Bg4 {[%emt 0:10:29]} 12. Bd3 {[%emt 0:44:04]} Nd7 {[%emt 0:04:04]} 13. O-O {[%emt 0:00:08]} Bxf3 {[%emt 0:30:00]} 14. Nxf3 {[%emt 0:00:02]} Be7 {[%emt 0:06:37]} 15. Qe2 {[%emt 0:00:45]} Ne5 {[%emt 0:05:26]} 16. Nxe5 {[%emt 0:03:58]} dxe5 {[%emt 0:02:58]} 17. a5 {[%emt 0:01:36]} O-O {[%emt 0:01:23]} 18. f4 {[%emt 0:01:39]} Bd6 {[%emt 0:02:38]} 19. f5 {[%emt 0:04:58]} Ra7 {[%emt 0:00:26]} 20. Bc4 {[%emt 0:00:44]} Be7 {[%emt 0:01:52]} 21. b3 {[%emt 0:00:12]} Qd6 {[%emt 0:00:18]} 22. Kh1 {[%emt 0:01:02]} Bf6 {[%emt 0:01:48]} 23. g3 {[%emt 0:00:22]} Rc8 {[%emt 0:01:39]} 24. h4 {[%emt 0:00:16]} Kf8 {[%emt 0:00:53]} 25. Kg2 {[%emt 0:01:05]} Ke7 {[%emt 0:01:20]} 26. Qh5 {[%emt 0:00:51]} Rh8 {[%emt 0:01:27]} 27. Rh1 {[%emt 0:01:07]} Raa8 {[%emt 0:01:01]} 28. Qe2 {[%emt 0:00:23]} h5 {[%emt 0:00:56]} 29. Rhf1 {[%emt 0:00:15]} Rh6 {[%emt 0:01:29]} 30. Kh2 {[%emt 0:01:06]} Rhh8 {[%emt 0:00:11]} 31. Rac1 {[%emt 0:03:45]} g6 {[%emt 0:01:00]} 32. fxg6 {[%emt 0:01:39]} fxg6 {[%emt 0:00:07]} 33. Qe3 {[%emt 0:00:13]} Rac8 {[%emt 0:00:53]} 34. Rf2 {[%emt 0:01:28]} Rcg8 {[%emt 0:00:47]} 35. Rcf1 {[%emt 0:03:37]} Rf8 {[%emt 0:00:13]} 36. Bxa6 {[%emt 0:01:04]} Qxa6 {[%emt 0:00:49]} 37. Qxc5+ {[%emt 0:00:02]} Kd7 {[%emt 0:00:26]} 38. d6 {[%emt 0:01:37]} Qxd6 {[%emt 0:00:50]} 39. Qxd6+ {[%emt 0:00:08]} Kxd6 {[%emt 0:00:03]} 40. Rxf6+ {[%emt 0:00:09]} Rxf6 {[%emt 0:00:05]} 41. Rxf6+ {[%emt 0:00:01]} Kc5 {[%emt 0:00:13]} 42. Rxg6 {[%emt 0:00:28]} Kd4 {[%emt 0:00:08]} 43. Rc6 {[%emt 0:00:55]} Kxe4 {[%emt 0:00:26]} 44. Rc4+ {[%emt 0:01:21]} Kf3 {[%emt 0:00:15]} 45. Rxb4 {[%emt 0:00:07]} Rd8 {[%emt 0:00:50]} 46. Rb7 {[%emt 0:00:27]} Rd2+ {[%emt 0:00:28]} 47. Kh3 {[%emt 0:00:02]} Ra2 {[%emt 0:00:55]} 48. b4 {[%emt 0:00:04]} e4 {[%emt 0:00:31]} 49. Rf7+ {[%emt 0:00:09]} Ke2 {[%emt 0:01:26]} 50. g4 {[%emt 0:01:16]} Ra3+ {[%emt 0:00:12]} 51. Kg2 {[%emt 0:00:00]} hxg4 {[%emt 0:00:21]} 52. h5 {[%emt 0:00:01]} Ra4 {[%emt 0:00:59]} 53. h6 {[%emt 0:00:13]} Rxb4 {[%emt 0:00:05]} 54. h7 {[%emt 0:00:16]} Rb8 {[%emt 0:00:05]} 55. a6 {[%emt 0:00:11]} e3 {[%emt 0:01:00]} 56. a7 {[%emt 0:01:30]} Ra8 {[%emt 0:00:34]} 57. Rb7 {[%emt 0:00:34]} Kd2 {[%emt 0:00:50]} 58. Rb8 {[%emt 0:00:29]} e2 {[%emt 0:00:19]} 59. h8=Q {[%emt 0:00:09]} e1=Q {[%emt 0:00:44]} 60. Qd4+ {[%emt 0:00:10]} 1-0

[Event "POR-chT 1st League 2017"]
[Site "Leiria"]
[Date "2017.07.21"]
[Round "7"]
[White "Carneiro, Carlos"]
[Black "Neto, Horacio"]
[Result "1/2-1/2"]
[ECO "E16"]
[WhiteElo "2175"]
[BlackElo "2162"]
[Annotator "NA"]
[PlyCount "94"]
[EventDate "2017.??.??"]
[EventType "team-tourn"]
[EventCountry "POR"]
[SourceTitle "playchess.com"]
[Source "ChessBase"]
[SourceQuality "1"]
[TimeControl "5400+30"]

1. d4 Nf6 2. c4 e6 3. Nf3 Bb4+ 4. Bd2 Qe7 5. Qc2 Bxd2+ 6. Nbxd2 O-O 7. e3 d6 8. Bd3 e5 9. Bf5 Nbd7 10. O-O g6 11. Bh3 Nh5 12. Bxd7 Bxd7 13. dxe5 dxe5 14. Qe4 Rfe8 15. Qxb7 c5 16. b3 e4 17. Nxe4 Rab8 18. Qd5 Rbd8 19. Ng3 Nxg3 20. hxg3 Bf5 21. Qc6 Be4 22. Qb5 Rd3 23. Rad1 Red8 24. Rxd3 Rxd3 25. Qb8+ Kg7 26. Qe5+ Qxe5 27. Nxe5 Rd2 28. f3 f6 29. Ng4 Bd3 30. Ra1 Rb2 31. Nf2 Rb1+ 32. Rxb1 Bxb1 33. Ne4 Bxe4 34. fxe4 Kf7 35. g4 Ke6 36. a3 a5 37. Kf2 Ke5 38. Ke2 Kxe4 39. Kd2 h5 40. gxh5 gxh5 41. Ke2 h4 42. Kd2 f5 43. Ke2 f4 44. exf4 Kxf4 45. Kf2 Ke4 46. Ke2 Kf4 47. Kf2 Ke5 1/2-1/2

[Event "POR-chT 1st League 2017"]
[Site "Leiria"]
[Date "2017.07.21"]
[Round "7"]
[White "Leao, Tiago Miguel Da Sil"]
[Black "Maisuradze, Nino"]
[Result "0-1"]
[ECO "B40"]
[WhiteElo "2075"]
[BlackElo "2266"]
[Annotator "NA"]
[PlyCount "62"]
[EventDate "2017.??.??"]
[EventType "team-tourn"]
[EventCountry "POR"]
[SourceTitle "playchess.com"]
[Source "ChessBase"]
[SourceQuality "1"]
[TimeControl "5400+30"]

1. e4 {[%emt 0:01:00]} c5 {[%emt 0:02:08]} 2. Nf3 {[%emt 0:00:50]} e6 {[%emt 0:01:02]} 3. d4 {[%emt 0:00:06]} cxd4 {[%emt 0:00:03]} 4. Nxd4 {[%emt 0:00:10]} Nf6 {[%emt 0:00:09]} 5. Bd3 {[%emt 0:01:01]} Nc6 {[%emt 0:02:33]} 6. Nxc6 {[%emt 0:01:25]} bxc6 {[%emt 0:00:23]} 7. O-O {[%emt 0:00:15]} e5 {[%emt 0:01:27]} 8. Qe2 {[%emt 0:06:36]} Bc5 {[%emt 0:04:10]} 9. Be3 {[%emt 0:03:53]} Qb6 {[%emt 0:10:04]} 10. Bxc5 {[%emt 0:06:16]} Qxc5 {[%emt 0:00:02]} 11. Nd2 {[%emt 0:00:18]} O-O {[%emt 0:00:22]} 12. Nc4 {[%emt 0:07:33]} Re8 {[%emt 0:01:28]} 13. Qe3 {[%emt 0:02:38]} Qxe3 {[%emt 0:12:11]} 14. Nxe3 {[%emt 0:01:16]} Rb8 {[%emt 0:00:59]} 15. b3 {[%emt 0:05:14]} d5 {[%emt 0:00:17]} 16. f3 {[%emt 0:01:01]} Be6 {[%emt 0:02:45]} 17. Rad1 {[%emt 0:02:54]} a5 {[%emt 0:01:13]} 18. a4 {[%emt 0:07:45]} Rb4 {[%emt 0:02:04]} 19. exd5 {[%emt 0:08:42]} cxd5 {[%emt 0:00:07]} 20. Bb5 {[%emt 0:00:53]} Rc8 {[%emt 0:00:26]} 21. Rfe1 {[%emt 0:01:45]} g6 {[%emt 0:10:51]} 22. Rd2 {[%emt 0:03:16]} Kg7 {[%emt 0:03:11]} 23. Red1 {[%emt 0:05:53]} h5 {[%emt 0:02:31]} 24. Nxd5 {[%emt 0:05:34]} Nxd5 {[%emt 0:00:30]} 25. Rxd5 {[%emt 0:00:05]} Bxd5 {[%emt 0:01:53]} 26. Rxd5 {[%emt 0:00:09]} Rd4 {[%emt 0:02:50]} 27. Rxe5 {[%emt 0:11:26]} Rxc2 {[%emt 0:00:54]} 28. Be2 {[%emt 0:01:42]} Rb2 {[%emt 0:04:15]} 29. Kf1 {[%emt 0:02:10]} Kf6 {[%emt 0:02:33]} 30. Rxa5 {[%emt 0:01:14]} Rdd2 {[%emt 0:00:24]} 31. Ra6+ {[%emt 0:00:28]} Ke5 0-1

[Event "POR-chT 1st League 2017"]
[Site "Leiria"]
[Date "2017.07.21"]
[Round "7"]
[White "Tubio Agrasar, Pablo"]
[Black "Hammes, Michael"]
[Result "1/2-1/2"]
[ECO "C00"]
[WhiteElo "1988"]
[BlackElo "2349"]
[Annotator "NA"]
[PlyCount "80"]
[EventDate "2017.??.??"]
[EventType "team-tourn"]
[EventCountry "POR"]
[SourceTitle "playchess.com"]
[Source "ChessBase"]
[SourceQuality "1"]
[TimeControl "5400+30"]

1. e4 {[%emt 0:00:00]} e6 {[%emt 0:00:09]} 2. d4 {[%emt 0:00:00]} d5 {[%emt 0:00:07]} 3. Bd3 {[%emt 0:00:00]} c5 {[%emt 0:01:22]} 4. exd5 {[%emt 0:00:06]} exd5 {[%emt 0:00:05]} 5. Nf3 {[%emt 0:00:05]} c4 {[%emt 0:00:58]} 6. Be2 {[%emt 0:00:06]} Bd6 {[%emt 0:00:53]} 7. O-O {[%emt 0:00:19]} Nc6 {[%emt 0:01:19]} 8. b3 {[%emt 0:00:12]} cxb3 {[%emt 0:00:10]} 9. axb3 {[%emt 0:00:05]} Nge7 {[%emt 0:00:42]} 10. c4 {[%emt 0:03:06]} O-O {[%emt 0:00:40]} 11. Ba3 {[%emt 0:04:44]} Bg4 {[%emt 0:02:56]} 12. Bb2 {[%emt 0:24:19]} Re8 {[%emt 0:09:14]} 13. h3 {[%emt 0:02:08]} Bh5 {[%emt 0:00:47]} 14. Re1 {[%emt 0:01:25]} a6 {[%emt 0:08:29]} 15. Bc3 {[%emt 0:11:14]} f6 {[%emt 0:11:29]} 16. c5 {[%emt 0:02:07]} Bc7 {[%emt 0:07:39]} 17. Nbd2 {[%emt 0:00:21]} Qd7 {[%emt 0:01:36]} 18. b4 {[%emt 0:02:05]} Ng6 {[%emt 0:10:19]} 19. b5 {[%emt 0:08:48]} axb5 {[%emt 0:00:43]} 20. Bxb5 {[%emt 0:00:24]} Nf4 {[%emt 0:01:12]} 21. Bf1 {[%emt 0:04:34]} g5 {[%emt 0:05:05]} 22. Qb3 {[%emt 0:04:11]} Rab8 {[%emt 0:01:33]} 23. Rxe8+ {[%emt 0:06:22]} Rxe8 {[%emt 0:00:17]} 24. Rb1 {[%emt 0:01:37]} Rb8 {[%emt 0:01:08]} 25. g3 {[%emt 0:02:48]} Nxh3+ {[%emt 0:03:09]} 26. Bxh3 {[%emt 0:00:02]} Qxh3 {[%emt 0:00:03]} 27. Qxd5+ {[%emt 0:00:20]} Bf7 {[%emt 0:00:09]} 28. Nxg5 {[%emt 0:03:02]} Qxg3+ {[%emt 0:05:26]} 29. fxg3 {[%emt 0:00:30]} Bxd5 {[%emt 0:00:04]} 30. Nge4 {[%emt 0:00:17]} Kg7 {[%emt 0:00:31]} 31. Kf2 {[%emt 0:04:58]} Ne7 {[%emt 0:00:31]} 32. g4 {[%emt 0:02:31]} Ra8 {[%emt 0:00:44]} 33. Ra1 {[%emt 0:00:39]} Rd8 {[%emt 0:02:32]} 34. Ng3 {[%emt 0:00:49]} Kg6 {[%emt 0:00:54]} 35. Nf3 {[%emt 0:00:04]} Bf4 {[%emt 0:05:48]} 36. Re1 {[%emt 0:04:04]} Rd7 {[%emt 0:01:34]} 37. Ne2 {[%emt 0:01:27]} Bc7 {[%emt 0:01:22]} 38. Ng3 {[%emt 0:01:19]} Bxg3+ {[%emt 0:02:52]} 39. Kxg3 {[%emt 0:00:01]} Nc6 {[%emt 0:00:16]} 40. Nh4+ {[%emt 0:00:23]} Kf7 {[%emt 0:02:03]} 1/2-1/2

[Event "POR-chT 1st League 2017"]
[Site "Leiria"]
[Date "2017.07.22"]
[Round "8"]
[White "Trigo Urquijo, Sergio"]
[Black "Neto, Horacio"]
[Result "1-0"]
[ECO "B25"]
[WhiteElo "2389"]
[BlackElo "2162"]
[Annotator "NA"]
[PlyCount "67"]
[EventDate "2017.??.??"]
[EventType "team-tourn"]
[EventCountry "POR"]
[SourceTitle "playchess.com"]
[Source "ChessBase"]
[SourceQuality "1"]
[TimeControl "5400+30"]

1. e4 c5 2. Nc3 Nc6 3. g3 g6 4. Bg2 Bg7 5. d3 d6 6. f4 e6 7. Nf3 Nge7 8. O-O O-O 9. Be3 Nd4 10. e5 Nxf3+ 11. Qxf3 Nf5 12. Bf2 Nd4 13. Qd1 d5 14. Na4 b6 15. b4 f6 16. bxc5 fxe5 17. c3 Nc6 18. cxb6 exf4 19. bxa7 fxg3 20. hxg3 Nxa7 21. Nb6 Rxf2 22. Nxa8 Rxf1+ 23. Qxf1 Bxc3 24. Rc1 Bd4+ 25. Kh2 Qg5 26. Rc7 Qh5+ 27. Bh3 g5 28. Kg2 Qg6 29. Qe2 Kh8 30. Nb6 Bxb6 31. Qb2+ d4 32. Qxb6 Qxd3 33. Qb2 Ba6 34. Rxa7 1-0

[Event "POR-chT 1st League 2017"]
[Site "Leiria"]
[Date "2017.07.22"]
[Round "8"]
[White "Hammes, Michael"]
[Black "Padeiro, Jose"]
[Result "1/2-1/2"]
[ECO "D10"]
[WhiteElo "2349"]
[BlackElo "2276"]
[Annotator "NA"]
[PlyCount "56"]
[EventDate "2017.??.??"]
[EventType "team-tourn"]
[EventCountry "POR"]
[SourceTitle "playchess.com"]
[Source "ChessBase"]
[SourceQuality "1"]
[TimeControl "5400+30"]

1. d4 {[%emt 0:00:00]} d5 {[%emt 0:00:20]} 2. c4 {[%emt 0:00:00]} c6 {[%emt 0:00:06]} 3. Nc3 {[%emt 0:00:03]} Nf6 {[%emt 0:00:04]} 4. e3 {[%emt 0:00:48]} a6 {[%emt 0:00:54]} 5. Nf3 {[%emt 0:02:37]} g6 {[%emt 0:01:12]} 6. a4 {[%emt 0:07:26]} Bg7 {[%emt 0:00:28]} 7. a5 {[%emt 0:01:25]} O-O {[%emt 0:00:50]} 8. Be2 {[%emt 0:00:41]} Ne4 {[%emt 0:21:37]} 9. O-O {[%emt 0:03:24]} Nxc3 {[%emt 0:03:34]} 10. bxc3 {[%emt 0:00:03]} c5 {[%emt 0:00:21]} 11. cxd5 {[%emt 0:13:56]} cxd4 12. cxd4 {[%emt 0:00:15]} Qxd5 {[%emt 0:00:50]} 13. Nd2 {[%emt 0:00:45]} Nc6 {[%emt 0:03:49]} 14. Nc4 {[%emt 0:00:50]} Rb8 {[%emt 0:00:51]} 15. Bb2 {[%emt 0:03:12]} Qd8 16. Qd2 Na7 {[%emt 0:16:06]} 17. Rfd1 {[%emt 0:05:44]} Bd7 {[%emt 0:00:56]} 18. d5 {[%emt 0:01:31]} Bxb2 {[%emt 0:01:15]} 19. Qxb2 {[%emt 0:00:05]} Bb5 {[%emt 0:01:54]} 20. e4 {[%emt 0:05:31]} Rc8 {[%emt 0:07:44]} 21. Qd4 {[%emt 0:05:45]} Bxc4 {[%emt 0:00:50]} 22. Bxc4 {[%emt 0:00:02]} Nb5 {[%emt 0:14:38]} 23. Bxb5 {[%emt 0:03:20]} axb5 {[%emt 0:00:01]} 24. Qb4 {[%emt 0:00:58]} Qd7 {[%emt 0:00:16]} 25. Rab1 {[%emt 0:01:04]} Rc4 {[%emt 0:05:15]} 26. Qxb5 {[%emt 0:03:18]} Qxb5 {[%emt 0:00:11]} 27. Rxb5 {[%emt 0:00:02]} Rxe4 {[%emt 0:00:09]} 28. g3 {[%emt 0:00:36]} Ra8 {[%emt 0:03:24]} 1/2-1/2

[Event "POR-chT 1st League 2017"]
[Site "Leiria"]
[Date "2017.07.22"]
[Round "8"]
[White "Barrero Garcia, Carlos"]
[Black "Tubio Agrasar, Pablo"]
[Result "1-0"]
[ECO "A05"]
[WhiteElo "2309"]
[BlackElo "1988"]
[Annotator "NA"]
[PlyCount "93"]
[EventDate "2017.??.??"]
[EventType "team-tourn"]
[EventCountry "POR"]
[SourceTitle "playchess.com"]
[Source "ChessBase"]
[SourceQuality "1"]
[TimeControl "5400+30"]

1. Nf3 {[%emt 0:05:35]} Nf6 {[%emt 0:00:16]} 2. c4 {[%emt 0:00:42]} g6 {[%emt 0:00:41]} 3. Nc3 {[%emt 0:00:08]} c5 {[%emt 0:01:12]} 4. d4 {[%emt 0:02:34]} Bg7 {[%emt 0:02:47]} 5. d5 {[%emt 0:04:37]} d6 {[%emt 0:02:25]} 6. e4 {[%emt 0:02:12]} O-O {[%emt 0:04:34]} 7. h3 {[%emt 0:01:42]} Na6 {[%emt 0:02:06]} 8. Bd3 {[%emt 0:00:16]} Nc7 {[%emt 0:00:27]} 9. O-O {[%emt 0:00:11]} Rb8 {[%emt 0:01:21]} 10. Re1 {[%emt 0:00:41]} e5 {[%emt 0:12:24]} 11. a3 Nh5 {[%emt 0:05:56]} 12. Rb1 {[%emt 0:04:05]} Bd7 {[%emt 0:02:33]} 13. b4 {[%emt 0:01:26]} b6 {[%emt 0:00:40]} 14. Bc2 {[%emt 0:03:07]} Qc8 {[%emt 0:03:22]} 15. Ba4 Bxa4 {[%emt 0:13:17]} 16. Qxa4 {[%emt 0:12:23]} cxb4 {[%emt 0:02:24]} 17. axb4 {[%emt 0:01:17]} b5 {[%emt 0:01:25]} 18. cxb5 {[%emt 0:03:57]} Qb7 {[%emt 0:00:29]} 19. Bd2 {[%emt 0:00:54]} Nxb5 {[%emt 0:03:53]} 20. Nxb5 {[%emt 0:00:32]} Qxb5 {[%emt 0:00:02]} 21. Qxb5 {[%emt 0:02:01]} Rxb5 {[%emt 0:00:03]} 22. Nh2 {[%emt 0:03:29]} Nf4 {[%emt 0:01:16]} 23. Ra1 {[%emt 0:00:56]} Bh6 {[%emt 0:10:34]} 24. Kf1 {[%emt 0:02:13]} Kg7 {[%emt 0:03:31]} 25. Red1 {[%emt 0:01:12]} Rb7 {[%emt 0:01:44]} 26. Ra6 {[%emt 0:03:19]} Rd8 {[%emt 0:00:02]} 27. Ng4 {[%emt 0:10:57]} Bg5 {[%emt 0:00:42]} 28. h4 {[%emt 0:00:13]} Be7 {[%emt 0:00:45]} 29. g3 {[%emt 0:00:52]} Nh5 {[%emt 0:00:56]} 30. Ne3 {[%emt 0:00:49]} Rc8 {[%emt 0:00:38]} 31. Rda1 {[%emt 0:01:00]} Rcc7 {[%emt 0:00:56]} 32. Ke2 {[%emt 0:00:30]} Nf6 {[%emt 0:01:51]} 33. Kd3 {[%emt 0:04:59]} Nd7 {[%emt 0:04:10]} 34. Nc4 {[%emt 0:00:49]} Nb8 {[%emt 0:00:09]} 35. R6a4 {[%emt 0:01:09]} Bf8 {[%emt 0:02:03]} 36. Na5 {[%emt 0:01:47]} Rb5 {[%emt 0:00:04]} 37. Rc1 {[%emt 0:00:16]} Rxc1 {[%emt 0:00:36]} 38. Bxc1 {[%emt 0:00:10]} a6 {[%emt 0:01:01]} 39. Kc4 {[%emt 0:00:58]} Nd7 {[%emt 0:00:02]} 40. Ra2 {[%emt 0:01:09]} f5 {[%emt 0:00:32]} 41. f3 {[%emt 0:01:18]} Nb6+ {[%emt 0:00:59]} 42. Kb3 {[%emt 0:00:44]} Nd7 {[%emt 0:02:48]} 43. Kc4 {[%emt 0:00:18]} Nb6+ {[%emt 0:00:07]} 44. Kc3 {[%emt 0:00:07]} Na8 {[%emt 0:00:12]} 45. Nc6 {[%emt 0:01:19]} Nc7 {[%emt 0:00:10]} 46. Kc4 {[%emt 0:00:26]} Rb7 {[%emt 0:00:38]} 47. Bg5 {[%emt 0:01:20]} 1-0

[Event "POR-chT 1st League 2017"]
[Site "Leiria"]
[Date "2017.07.22"]
[Round "8"]
[White "Ulyanovskyy, Viktor"]
[Black "Guerra, Victor"]
[Result "1-0"]
[ECO "B20"]
[WhiteElo "2219"]
[BlackElo "2136"]
[Annotator "NA"]
[PlyCount "99"]
[EventDate "2017.??.??"]
[EventType "team-tourn"]
[EventCountry "POR"]
[SourceTitle "playchess.com"]
[Source "ChessBase"]
[SourceQuality "1"]
[TimeControl "5400+30"]

1. e4 {[%emt 0:09:22]} c5 {[%emt 0:00:05]} 2. c4 {[%emt 0:00:12]} e6 {[%emt 0:00:36]} 3. Nc3 {[%emt 0:01:00]} Nc6 {[%emt 0:00:21]} 4. d3 {[%emt 0:01:50]} a6 {[%emt 0:05:14]} 5. f4 {[%emt 0:02:43]} d6 {[%emt 0:03:14]} 6. Nf3 {[%emt 0:00:48]} Nf6 {[%emt 0:01:31]} 7. Be2 {[%emt 0:10:27]} Be7 {[%emt 0:03:22]} 8. O-O {[%emt 0:00:39]} O-O 9. h3 {[%emt 0:12:19]} d5 {[%emt 0:11:16]} 10. e5 {[%emt 0:02:03]} Nh5 {[%emt 0:01:01]} 11. Kh2 {[%emt 0:01:22]} g6 {[%emt 0:02:15]} 12. d4 dxc4 {[%emt 0:14:22]} 13. dxc5 {[%emt 0:08:24]} Bxc5 {[%emt 0:05:49]} 14. Bxc4 {[%emt 0:01:38]} Ng7 {[%emt 0:07:01]} 15. Ne4 {[%emt 0:05:10]} Be7 {[%emt 0:01:37]} 16. Be3 {[%emt 0:02:59]} b5 {[%emt 0:07:59]} 17. Be2 {[%emt 0:03:12]} Nb4 {[%emt 0:01:02]} 18. Qxd8 {[%emt 0:10:13]} Rxd8 {[%emt 0:00:32]} 19. Bb6 {[%emt 0:00:16]} Rf8 {[%emt 0:00:53]} 20. Nf6+ {[%emt 0:03:05]} Bxf6 {[%emt 0:08:39]} 21. exf6 {[%emt 0:00:08]} Nh5 {[%emt 0:02:49]} 22. Bc5 {[%emt 0:04:41]} Nd5 {[%emt 0:00:39]} 23. Bxf8 {[%emt 0:01:07]} Kxf8 {[%emt 0:00:05]} 24. g3 {[%emt 0:00:13]} Nhxf6 {[%emt 0:01:12]} 25. a4 {[%emt 0:01:35]} b4 {[%emt 0:01:01]} 26. a5 {[%emt 0:00:35]} h5 {[%emt 0:00:13]} 27. h4 {[%emt 0:01:20]} Ng4+ {[%emt 0:03:23]} 28. Kg1 {[%emt 0:00:06]} Bb7 {[%emt 0:01:17]} 29. Ne5 {[%emt 0:00:47]} Nge3 {[%emt 0:00:28]} 30. Rfc1 {[%emt 0:00:12]} Rd8 {[%emt 0:03:43]} 31. Nd3 {[%emt 0:00:53]} Nf5 {[%emt 0:01:02]} 32. Kf2 {[%emt 0:01:32]} Nf6 {[%emt 0:01:37]} 33. Nc5 {[%emt 0:00:38]} Bc8 {[%emt 0:07:19]} 34. Rd1 {[%emt 0:00:37]} Re8 {[%emt 0:00:37]} 35. Bxa6 {[%emt 0:01:59]} e5 {[%emt 0:01:40]} 36. Bxc8 {[%emt 0:01:06]} Ng4+ {[%emt 0:00:12]} 37. Kf3 {[%emt 0:00:32]} Rxc8 {[%emt 0:00:33]} 38. a6 {[%emt 0:07:58]} Rxc5 {[%emt 0:01:20]} 39. a7 {[%emt 0:00:32]} Nh2+ {[%emt 0:01:19]} 40. Ke2 {[%emt 0:00:13]} Nxg3+ {[%emt 0:00:45]} 41. Kf2 {[%emt 0:00:25]} exf4 {[%emt 0:00:39]} 42. a8=Q+ {[%emt 0:00:30]} Kg7 {[%emt 0:00:05]} 43. Rac1 {[%emt 0:00:45]} Re5 {[%emt 0:00:31]} 44. Re1 {[%emt 0:00:34]} Ng4+ {[%emt 0:01:21]} 45. Kf3 {[%emt 0:00:32]} Rf5 {[%emt 0:00:49]} 46. Qd8 {[%emt 0:01:39]} Nf6 {[%emt 0:01:13]} 47. Rc8 {[%emt 0:00:32]} g5 {[%emt 0:00:29]} 48. hxg5 {[%emt 0:00:58]} Rxg5 {[%emt 0:00:34]} 49. Qh8+ {[%emt 0:00:40]} Kg6 {[%emt 0:00:04]} 50. Rc6 {[%emt 0:00:13]} 1-0

[Event "POR-chT 1st League 2017"]
[Site "Leiria"]
[Date "2017.07.22"]
[Round "8"]
[White "Santos, Jose Alves"]
[Black "Sousa, Andre Ventura"]
[Result "0-1"]
[ECO "C65"]
[WhiteElo "2196"]
[BlackElo "2368"]
[Annotator "NA"]
[PlyCount "80"]
[EventDate "2017.??.??"]
[EventType "team-tourn"]
[EventCountry "POR"]
[SourceTitle "playchess.com"]
[Source "ChessBase"]
[SourceQuality "1"]
[TimeControl "5400+30"]

1. e4 {[%emt 0:00:07]} e5 {[%emt 0:00:26]} 2. Nf3 {[%emt 0:00:24]} Nc6 {[%emt 0:00:04]} 3. Bb5 {[%emt 0:00:13]} Nf6 {[%emt 0:00:04]} 4. d4 {[%emt 0:09:31]} Nxd4 {[%emt 0:12:36]} 5. Nxd4 {[%emt 0:03:15]} exd4 {[%emt 0:00:28]} 6. e5 {[%emt 0:01:36]} c6 {[%emt 0:00:37]} 7. exf6 {[%emt 0:02:19]} Qa5+ {[%emt 0:01:27]} 8. c3 {[%emt 0:00:54]} Qxb5 {[%emt 0:00:20]} 9. Qxd4 {[%emt 0:00:50]} gxf6 {[%emt 0:00:12]} 10. Qxf6 {[%emt 0:10:41]} Rg8 {[%emt 0:00:08]} 11. a4 {[%emt 0:02:25]} Qd5 {[%emt 0:01:13]} 12. Be3 {[%emt 0:12:25]} Rxg2 {[%emt 0:10:29]} 13. Nd2 {[%emt 0:18:24]} Rg6 {[%emt 0:05:50]} 14. Qf3 {[%emt 0:00:03]} Qxf3 {[%emt 0:00:23]} 15. Nxf3 {[%emt 0:00:03]} d6 {[%emt 0:00:21]} 16. h4 {[%emt 0:01:04]} Bg4 {[%emt 0:01:09]} 17. Nd4 {[%emt 0:01:30]} h5 {[%emt 0:07:39]} 18. Kd2 {[%emt 0:02:14]} c5 {[%emt 0:00:24]} 19. Nc2 {[%emt 0:04:50]} Be7 {[%emt 0:01:30]} 20. Rae1 {[%emt 0:02:25]} Kd7 {[%emt 0:00:18]} 21. Bf4 {[%emt 0:00:41]} Rag8 {[%emt 0:04:50]} 22. b4 {[%emt 0:04:20]} Rf6 {[%emt 0:01:39]} 23. Bg3 {[%emt 0:01:46]} Bf3 {[%emt 0:00:07]} 24. Rhg1 {[%emt 0:01:02]} cxb4 {[%emt 0:03:47]} 25. cxb4 {[%emt 0:00:33]} Rg4 {[%emt 0:00:15]} 26. Kc3 {[%emt 0:09:29]} d5 {[%emt 0:01:43]} 27. Be5 {[%emt 0:04:02]} Rc6+ {[%emt 0:00:15]} 28. Kb3 {[%emt 0:01:11]} Rgc4 {[%emt 0:03:11]} 29. b5 {[%emt 0:03:12]} Rc8 {[%emt 0:00:44]} 30. Rg3 {[%emt 0:02:31]} Be4 {[%emt 0:00:17]} 31. Nd4 {[%emt 0:00:44]} Rb4+ {[%emt 0:00:04]} 32. Ka2 {[%emt 0:00:18]} Rxa4+ {[%emt 0:00:04]} 33. Kb3 {[%emt 0:00:06]} Rb4+ {[%emt 0:00:38]} 34. Ka2 {[%emt 0:00:12]} Rcc4 {[%emt 0:00:20]} 35. f3 {[%emt 0:01:00]} Ra4+ {[%emt 0:00:11]} 36. Kb2 {[%emt 0:00:08]} Rcb4+ {[%emt 0:00:35]} 37. Nb3 {[%emt 0:00:01]} Bg6 {[%emt 0:00:59]} 38. Rc1 {[%emt 0:01:47]} Rxb5 {[%emt 0:01:01]} 39. Rc7+ {[%emt 0:00:21]} Ke6 {[%emt 0:00:06]} 40. Bc3 {[%emt 0:00:46]} Ba3+ {[%emt 0:00:14]} 0-1

[Event "POR-chT 1st League 2017"]
[Site "Leiria"]
[Date "2017.07.22"]
[Round "8"]
[White "Reis, Luis Sousa"]
[Black "Sousa, Andre Ventura"]
[Result "*"]
[ECO "C65"]
[WhiteElo "2182"]
[BlackElo "2368"]
[Annotator "NA"]
[PlyCount "65"]
[EventDate "2017.??.??"]
[EventType "team-tourn"]
[EventCountry "POR"]
[SourceTitle "playchess.com"]
[Source "ChessBase"]
[SourceQuality "1"]
[TimeControl "5400+30"]

1. e4 {[%emt 0:00:07]} e5 {[%emt 0:00:26]} 2. Nf3 {[%emt 0:00:24]} Nc6 {[%emt 0:00:04]} 3. Bb5 {[%emt 0:00:13]} Nf6 {[%emt 0:00:04]} 4. d4 {[%emt 0:09:31]} Nxd4 {[%emt 0:12:36]} 5. Nxd4 {[%emt 0:03:15]} exd4 {[%emt 0:00:28]} 6. e5 {[%emt 0:01:36]} c6 {[%emt 0:00:37]} 7. exf6 {[%emt 0:02:19]} Qa5+ {[%emt 0:01:27]} 8. c3 {[%emt 0:00:54]} Qxb5 {[%emt 0:00:20]} 9. Qxd4 {[%emt 0:00:50]} gxf6 {[%emt 0:00:12]} 10. Qxf6 {[%emt 0:10:41]} Rg8 {[%emt 0:00:08]} 11. a4 {[%emt 0:02:25]} Qd5 {[%emt 0:01:13]} 12. Be3 {[%emt 0:12:25]} Rxg2 {[%emt 0:10:29]} 13. Nd2 {[%emt 0:18:24]} Rg6 {[%emt 0:05:50]} 14. Qf3 {[%emt 0:00:03]} Qxf3 {[%emt 0:00:23]} 15. Nxf3 {[%emt 0:00:03]} d6 {[%emt 0:00:21]} 16. h4 {[%emt 0:01:04]} Bg4 {[%emt 0:01:09]} 17. Nd4 {[%emt 0:01:30]} h5 {[%emt 0:07:39]} 18. Kd2 {[%emt 0:02:14]} c5 {[%emt 0:00:24]} 19. Nc2 {[%emt 0:04:50]} Be7 {[%emt 0:01:30]} 20. Rae1 {[%emt 0:02:25]} Kd7 {[%emt 0:00:18]} 21. Bf4 {[%emt 0:00:41]} Rag8 {[%emt 0:04:50]} 22. b4 {[%emt 0:04:20]} Rf6 {[%emt 0:01:39]} 23. Bg3 {[%emt 0:01:46]} Bf3 {[%emt 0:00:07]} 24. Rhg1 {[%emt 0:01:02]} cxb4 {[%emt 0:03:47]} 25. cxb4 {[%emt 0:00:33]} Rg4 {[%emt 0:00:15]} 26. Kc3 {[%emt 0:09:29]} d5 {[%emt 0:01:43]} 27. Be5 {[%emt 0:04:02]} Rc6+ {[%emt 0:00:15]} 28. Kb3 {[%emt 0:01:11]} Rgc4 {[%emt 0:03:11]} 29. b5 {[%emt 0:03:12]} Rc8 {[%emt 0:00:44]} 30. Rg3 {[%emt 0:02:31]} Be4 {[%emt 0:00:17]} 31. Nd4 {[%emt 0:00:44]} Rb4+ {[%emt 0:00:04]} 32. Ka2 {[%emt 0:00:18]} Rxa4+ {[%emt 0:00:04]} 33. Kb3 {[%emt 0:00:06]} *